bitfinex-derivatives/quotes_SOLF0:USTF0_20250428
["timestamp","ask_amount","ask_price","bid_price","bid_amount"]
[1745839005057,13.1477,152.07,151.91,2.0374]
[1745839005356,6.5759,152.02,151.99,6.5768]
[1745839005857,19.69,152.0,151.78,13.1718]
[1745839006158,1.9538,151.99,151.85,6.5828]
[1745839006457,1.9538,151.99,151.84,4.0358]
[1745839006660,1.9538,151.99,151.87,6.582]
[1745839006951,6.5802,151.92,151.87,6.582]
[1745839007859,1.9538,151.99,151.84,4.0358]
[1745839008059,1.9538,151.99,151.85,1.8962]
[1745839008357,6.5788,151.95,151.89,6.5813]
[1745839008555,1.9538,151.99,151.8,13.1706]
[1745839008958,1.9538,151.99,151.87,6.582]
[1745839009158,1.9538,151.99,151.79,5.8971]
[1745839009354,1.9538,151.99,151.8,1.20897974]
[1745839009556,6.5807,151.91,151.8,1.20897974]
[1745839010160,6.5812,151.9,151.8,1.20897974]
[1745839010357,1.9538,151.99,151.79,5.8971]
[1745839010558,19.69,151.98,151.8,1.20906479]
[1745839010757,6.5814,151.89,151.85,6.5828]
[1745839010958,19.69,151.97,151.85,6.5828]
[1745839011357,6.5816,151.89,151.85,6.5828]
[1745839011859,6.5823,151.87,151.83,6.5837]
[1745839012058,6.5823,151.87,151.79,5.8971]
[1745839012258,2.0101,151.95,151.79,19.0683]
[1745839012461,2.0101,151.95,151.8,1.20914684]
[1745839012854,2.0101,151.95,151.9,6.5807]
[1745839013055,475.5338,151.99,151.79,5.8971]
[1745839013255,475.5338,151.99,151.8,1.20882358]
[1745839013454,1.9538,151.99,151.79,366.8971]
[1745839013754,6.5782,151.97,151.8,1.20877219]
[1745839014161,6.5782,151.97,151.94,6.5791]
[1745839014360,6.5782,151.97,151.83,13.1673]
[1745839014563,6.5784,151.96,151.84,1.20870715]
[1745839014758,6.5784,151.96,151.85,6.1278]
[1745839014962,6.5784,151.96,151.86,1.20870715]
[1745839015259,6.5784,151.96,151.85,6.1278]
[1745839015458,6.5784,151.96,151.86,1.20870577]
[1745839016663,6.5784,151.96,151.92,6.5797]
[1745839016863,6.5784,151.96,151.85,6.1278]
[1745839017059,6.5784,151.96,151.86,1.20871338]
[1745839017259,6.5784,151.96,151.92,6.5797]
[1745839017460,6.5784,151.96,151.85,6.1278]
[1745839017660,6.5784,151.96,151.86,1.20871303]
[1745839018165,6.5784,151.96,151.93,6.5795]
[1745839018865,6.5781,151.97,151.94,6.5791]
[1745839019066,1.9538,151.99,151.94,6.5791]
[1745839019361,6.5777,151.98,151.94,6.5791]
[1745839020367,8.531,151.99,151.95,6.5785]
[1745839020562,6.5772,151.99,151.86,13.1649]
[1745839020768,2.0101,152.01,151.86,13.1649]
[1745839020965,6.5779,151.97,151.94,6.5789]
[1745839021362,6.5776,151.98,151.95,6.5786]
[1745839021861,6.5774,151.99,151.95,6.5785]
[1745839022268,2.0101,152.01,151.95,6.5785]
[1745839022565,6.5786,151.96,151.86,13.1649]
[1745839022766,19.69,152.11,151.91,13.1609]
[1745839022958,6.5747,152.05,152.0,6.5763]
[1745839023363,1.8836,152.1,151.93,1.9643]
[1745839023563,6.5744,152.06,152.0,6.5763]
[1745839023764,1.8836,152.1,151.93,1.9643]
[1745839023968,4.40949815,152.09,151.94,1.20807742]
[1745839024169,6.5737,152.07,151.94,1.20807742]
[1745839024670,6.574,152.06,152.01,6.5757]
[1745839024865,1.8836,152.1,152.01,6.5757]
[1745839025072,4.41113718,152.09,151.93,1.9643]
[1745839025275,6.5743,152.06,152.02,6.5757]
[1745839026273,6.5743,152.06,152.03,6.5752]
[1745839027372,6.5744,152.05,152.03,6.5752]
[1745839027569,6.5744,152.05,152.02,6.5755]
[1745839028870,6.5744,152.05,152.03,6.5753]
[1745839029674,6.5744,152.05,152.02,6.5756]
[1745839030973,6.5744,152.05,152.03,6.5752]
[1745839031973,6.5742,152.06,152.03,6.5752]
[1745839035277,6.5742,152.06,152.04,6.5748]
[1745839036073,6.5733,152.08,152.05,6.5742]
[1745839038880,6.5736,152.07,152.05,6.5742]
[1745839039176,6.5736,152.07,151.96,13.1562]
[1745839039479,6.5736,152.07,151.97,1.2078324]
[1745839039673,6.5736,152.07,151.98,4.0673]
[1745839039871,6.5736,152.07,151.99,2.0182]
[1745839041275,6.5736,152.07,152.04,6.5746]
[1745839042575,1.8836,152.1,151.99,2.0182]
[1745839043178,6.5732,152.08,152.05,6.5742]
[1745839043477,2.0799,152.11,151.99,2.0182]
[1745839044077,19.69,152.15,151.99,2.0182]
[1745839044277,6.33318598,152.14,151.99,2.0182]
[1745839044577,6.5733,152.08,152.05,6.5742]
[1745839045081,1.9384,152.14,151.99,2.0182]
[1745839045270,4.39380034,152.13,152.05,6.5741]
[1745839045474,1.9384,152.14,151.99,2.0182]
[1745839045674,4.39258084,152.13,151.99,2.0182]
[1745839045875,6.5732,152.08,151.99,2.0182]
[1745839046076,19.69,152.13,151.99,2.0182]
[1745839046280,19.69,152.11,151.99,2.0182]
[1745839046474,19.69,152.11,152.02,6.5755]
[1745839046674,19.69,152.11,151.99,2.0182]
[1745839046979,6.5742,152.06,152.03,6.5751]
[1745839047580,6.5742,152.06,152.04,6.5748]
[1745839047781,6.5736,152.07,152.04,6.5748]
[1745839048184,6.5736,152.07,152.05,6.5743]
[1745839048877,1.9384,152.14,151.99,2.0182]
[1745839049073,4.38567008,152.13,151.99,2.0182]
[1745839049273,4.38567008,152.12,151.99,2.0182]
[1745839049478,6.5735,152.08,152.05,6.5742]
[1745839051986,6.5736,152.07,152.05,6.5742]
[1745839054085,6.5736,152.07,152.04,6.5747]
[1745839054589,6.5736,152.07,152.05,6.5744]
[1745839056190,6.5736,152.07,152.04,6.5747]
[1745839056391,6.5736,152.07,151.99,2.0182]
[1745839056586,6.5736,152.07,152.04,6.5745]
[1745839056889,6.5736,152.07,151.99,2.0182]
[1745839057190,1.9384,152.14,152.05,6.5742]
[1745839057493,4.40023235,152.13,152.05,6.5742]
[1745839057691,6.5735,152.08,152.05,6.5742]
[1745839057896,6.5735,152.08,151.99,2.0182]
[1745839057897,1.9384,152.14,152.03,6.5751]
[1745839058195,6.5738,152.07,151.99,2.0182]
[1745839058391,6.5738,152.07,152.04,6.5745]
[1745839058792,1.9384,152.14,151.99,2.0182]
[1745839058793,6.5733,152.08,151.99,2.0182]
[1745839058994,1.9384,152.14,152.06,6.5737]
[1745839059191,4.40775783,152.13,152.06,6.5737]
[1745839059390,6.5734,152.08,152.06,6.5737]
[1745839059589,1.9384,152.14,151.99,2.0182]
[1745839059791,4.40924401,152.13,151.99,2.0182]
[1745839060093,6.5738,152.07,152.05,6.5743]
[1745839060492,6.5733,152.08,151.99,2.0182]
[1745839060690,6.5733,152.08,152.05,6.5742]
[1745839061291,1.9384,152.14,151.99,15.1718]
[1745839061595,4.41439393,152.13,151.99,2.0182]
[1745839061795,4.41439393,152.12,152.0,14.36072489]
[1745839062094,1.9891,152.15,152.0,13.1531]
[1745839062395,6.5721,152.11,152.08,6.5731]
[1745839062794,1.9891,152.15,152.08,6.5731]
[1745839062994,6.5722,152.11,152.08,6.5731]
[1745839064398,6.5722,152.11,152.09,6.5727]
[1745839066697,6.5716,152.12,152.1,6.5722]
[1745839067297,4.42985823,152.11,152.1,6.5722]
[1745839067497,4.42985823,152.11,152.09,6.5725]
[1745839067791,6.5716,152.12,152.09,6.5725]
[1745839068097,11.00017559,152.11,152.09,6.5725]
[1745839068296,6.572,152.11,152.09,6.5725]
[1745839069199,6.5715,152.12,152.1,6.5723]
[1745839069399,1.8931,152.17,152.03,13.1503]
[1745839069600,4.4284441,152.16,152.04,3.9551]
[1745839069798,4.4284441,152.15,152.04,3.9551]
[1745839069998,4.4284441,152.14,152.12,6.5711]
[1745839070299,6.5703,152.15,152.05,1.9855]
[1745839070496,4.42728506,152.14,152.05,1.9855]
[1745839070697,1.9204,152.19,152.05,1.9855]
[1745839070897,4.42762274,152.18,152.05,1.9855]
[1745839071198,6.5703,152.15,152.05,1.9855]
[1745839071699,6.5707,152.14,152.11,6.5716]
[1745839074202,6.571,152.13,152.11,6.5716]
[1745839074503,1.9204,152.19,152.11,6.5716]
[1745839074694,4.4221985,152.18,152.11,6.5716]
[1745839074898,6.5709,152.14,152.11,6.5716]
[1745839075400,6.5709,152.14,152.12,6.5714]
[1745839075602,6.5711,152.13,152.05,1.9855]
[1745839075802,1.9204,152.19,152.11,6.5716]
[1745839076001,4.42256836,152.18,152.11,6.5716]
[1745839076201,4.42256836,152.17,152.05,1.9855]
[1745839076404,4.42256836,152.16,152.09,6.5724]
[1745839076702,6.5719,152.11,152.09,6.5724]
[1745839077904,6.5714,152.13,152.1,6.572]
[1745839078106,1.9204,152.19,152.1,6.572]
[1745839078404,6.5715,152.12,152.1,6.572]
[1745839078605,1.9204,152.19,152.1,6.572]
[1745839078804,4.42219532,152.18,152.05,1.9855]
[1745839079005,6.5706,152.14,152.05,1.9855]
[1745839079504,6.569,152.18,152.05,475.1055]
[1745839079704,1.9746,152.21,152.06,1.20699578]
[1745839080000,4.4207183,152.2,152.06,1.20699578]
[1745839080204,6.5677,152.21,152.06,1.20699578]
[1745839080405,6.5677,152.21,152.08,13.1461]
[1745839080595,6.5677,152.21,152.05,475.1055]
[1745839080802,6.5672,152.22,152.06,1.20676354]
[1745839081002,2.0235,152.26,152.06,1.20676354]
[1745839081202,4.42001056,152.25,152.06,1.20676354]
[1745839081405,4.42001056,152.24,152.06,1.20676354]
[1745839081606,1.9381,152.27,152.22,6.5668]
[1745839081805,4.41880283,152.26,152.22,6.5668]
[1745839082110,4.41880283,152.25,152.22,6.5668]
[1745839082305,1.9381,152.27,152.21,6.5673]
[1745839082505,4.41297746,152.26,152.21,6.5673]
[1745839082809,6.5663,152.24,152.2,6.5676]
[1745839083008,6.5663,152.24,152.12,5.9167]
[1745839083213,1.9381,152.27,152.12,5.9167]
[1745839083403,4.40836414,152.26,152.2,6.5677]
[1745839083607,4.40836414,152.25,152.12,5.9167]
[1745839083808,473.12,152.3,152.12,5.9167]
[1745839084009,4.409129,152.29,152.13,1.20638809]
[1745839084205,4.409129,152.28,152.14,13.1408]
[1745839084512,4.40503303,152.27,152.12,5.9167]
[1745839084711,473.12,152.3,152.13,1.20655069]
[1745839085012,4.40554371,152.29,152.13,1.20655069]
[1745839085211,6.5667,152.23,152.2,6.5678]
[1745839085411,473.12,152.3,152.12,5.9167]
[1745839085712,6.5656,152.26,152.22,6.5668]
[1745839086010,6.5656,152.26,152.13,13.1417]
[1745839086202,6.5656,152.26,152.14,1.20642016]
[1745839086406,6.5656,152.26,152.22,6.5668]
[1745839086712,6.5658,152.25,152.22,6.5668]
[1745839088115,473.12,152.3,152.13,13.1417]
[1745839088116,6.5663,152.24,152.13,13.1417]
[1745839088314,6.5663,152.24,152.14,1.20621199]
[1745839088609,473.12,152.3,152.13,13.1417]
[1745839088805,4.39300763,152.29,152.12,5.9167]
[1745839089008,4.39300763,152.28,152.12,5.9167]
[1745839089213,6.5676,152.21,152.17,6.5688]
[1745839089412,473.12,152.3,152.17,6.5688]
[1745839089712,19.71,152.28,152.12,5.9167]
[1745839089913,6.5681,152.2,152.17,6.5692]
[1745839090811,4.1313,152.25,152.16,6.5695]
[1745839091012,6.5685,152.19,152.12,5.9167]
[1745839091413,4.1313,152.25,152.17,6.569]
[1745839091612,4.1313,152.25,152.12,5.9167]
[1745839091915,6.5678,152.21,152.17,6.5689]
[1745839092116,4.1313,152.25,152.17,6.5689]
[1745839092516,6.5678,152.21,152.18,6.5688]
[1745839092716,4.1313,152.25,152.18,6.5688]
[1745839093120,6.5677,152.21,152.18,6.5688]
[1745839093616,4.1313,152.25,152.18,6.5688]
[1745839094113,6.5683,152.2,152.17,6.5692]
[1745839094308,4.1313,152.25,152.17,6.5692]
[1745839094717,6.5682,152.2,152.17,6.5692]
[1745839095613,6.5685,152.19,152.17,6.5692]
[1745839095814,4.1313,152.25,152.17,6.5692]
[1745839096317,4.1313,152.25,152.12,5.9167]
[1745839096618,6.568,152.2,152.12,5.9167]
[1745839096812,6.568,152.2,152.17,6.5689]
[1745839097418,4.1313,152.25,152.19,6.5684]
[1745839097913,6.5673,152.22,152.19,6.5684]
[1745839098118,4.1313,152.25,152.12,19.0594]
[1745839098320,473.12,152.3,152.13,1.20652564]
[1745839098513,6.5666,152.24,152.12,5.9167]
[1745839098712,6.5666,152.24,152.21,6.5672]
[1745839100618,6.5667,152.23,152.21,6.5672]
[1745839100822,6.5667,152.23,152.2,6.5678]
[1745839101020,6.5667,152.23,152.13,13.1419]
[1745839101414,6.5664,152.24,152.21,6.5673]
[1745839102520,6.5667,152.23,152.2,6.5677]
[1745839102720,477.1288,152.3,152.13,13.1419]
[1745839102921,4.39346712,152.29,152.13,13.1419]
[1745839103121,6.567,152.23,152.19,6.568]
[1745839103521,6.567,152.23,152.13,13.1419]
[1745839103721,477.1288,152.3,152.13,13.1419]
[1745839103722,6.5671,152.22,152.19,6.5681]
[1745839103923,477.1288,152.3,152.13,13.1419]
[1745839104125,4.39396093,152.29,152.2,6.5679]
[1745839104422,4.39396093,152.28,152.2,6.5679]
[1745839104625,6.5669,152.23,152.2,6.5679]
[1745839104824,6.5669,152.23,152.21,6.5675]
[1745839105123,6.5669,152.23,152.13,13.1419]
[1745839105523,6.5669,152.23,152.2,6.5677]
[1745839105820,6.5672,152.22,152.13,13.1419]
[1745839106024,32.8383,152.29,152.18,6.5685]
[1745839106221,24.10408954,152.28,152.12,5.9167]
[1745839106425,4.39408954,152.27,152.12,5.9167]
[1745839106628,4.39408954,152.26,152.19,6.5684]
[1745839106925,6.5673,152.22,152.19,6.5684]
[1745839107122,32.8383,152.29,152.12,19.0591]
[1745839107327,4.39570277,152.28,152.12,19.0591]
[1745839107523,4.39587586,152.27,152.2,6.5679]
[1745839107723,4.39587586,152.26,152.2,6.5679]
[1745839108026,6.567,152.23,152.2,6.5679]
[1745839110130,6.5671,152.22,152.2,6.5679]
[1745839111431,6.5669,152.23,152.2,6.5679]
[1745839114431,6.566,152.25,152.23,6.5666]
[1745839114632,477.1288,152.3,152.12,5.9167]
[1745839114832,4.3992149,152.29,152.13,1.20643833]
[1745839115032,6.5656,152.26,152.23,6.5663]
[1745839115532,477.1288,152.3,152.16,13.1392]
[1745839115733,4.40013372,152.29,152.16,13.1392]
[1745839116033,4.40013372,152.28,152.16,13.1392]
[1745839116338,4.40013372,152.27,152.12,19.0591]
[1745839116636,6.5673,152.22,152.2,6.5679]
[1745839117037,509.9668,152.3,152.2,6.5679]
[1745839117338,6.5666,152.24,152.21,6.5675]
[1745839117739,6.5668,152.23,152.21,6.5675]
[1745839118438,6.5665,152.24,152.21,6.5675]
[1745839118640,6.5665,152.24,152.22,6.5671]
[1745839119237,6.5665,152.24,152.21,6.5673]
[1745839119538,6.5668,152.23,152.21,6.5673]
[1745839120840,6.5664,152.24,152.21,6.5673]
[1745839121539,6.5667,152.23,152.21,6.5673]
[1745839121740,36.8468,152.3,152.21,6.5673]
[1745839121942,4.41431425,152.29,152.21,6.5673]
[1745839122143,4.41431425,152.28,152.14,13.1408]
[1745839122342,4.41431425,152.27,152.14,13.1408]
[1745839122543,4.41431425,152.26,152.14,13.1408]
[1745839122739,4.41431425,152.25,152.19,6.568]
[1745839122940,4.41431425,152.24,152.14,13.1408]
[1745839123139,4.41431425,152.23,152.14,13.1408]
[1745839123341,36.8468,152.3,152.14,13.1408]
[1745839123640,24.13297672,152.29,152.14,13.1408]
[1745839123841,4.42297672,152.28,152.2,6.5679]
[1745839124042,4.42297672,152.27,152.2,6.5679]
[1745839124244,4.42297672,152.26,152.2,6.5679]
[1745839124444,4.42297672,152.25,152.2,6.5679]
[1745839124645,6.5667,152.23,152.2,6.5679]
[1745839124843,4.42297672,152.22,152.2,6.5679]
[1745839125045,19.71,152.29,152.2,6.5679]
[1745839125246,4.43112676,152.28,152.2,6.5679]
[1745839125545,4.43112676,152.27,152.2,6.5679]
[1745839125746,4.43112676,152.26,152.2,6.5679]
[1745839125947,6.5673,152.22,152.2,6.5679]
[1745839126447,6.5673,152.22,152.19,6.5682]
[1745839126642,19.71,152.29,152.14,13.1408]
[1745839126841,4.4312036,152.28,152.14,13.1408]
[1745839127042,4.4312036,152.27,152.19,6.5681]
[1745839127245,4.43109746,152.26,152.14,13.1408]
[1745839127446,4.43109746,152.25,152.14,13.1408]
[1745839127646,4.43109746,152.24,152.14,13.1408]
[1745839127846,4.43109746,152.23,152.14,13.1408]
[1745839128147,10.99839746,152.22,152.2,6.5678]
[1745839128343,6.5673,152.22,152.2,6.5678]
[1745839128549,19.71,152.29,152.14,13.1408]
[1745839128845,6.5669,152.23,152.14,13.1408]
[1745839129045,4.42962703,152.22,152.14,13.1408]
[1745839129245,6.5675,152.22,152.19,6.5681]
[1745839129448,6.5675,152.22,152.14,13.1408]
[1745839129847,6.5675,152.22,152.19,6.568]
[1745839130047,6.5675,152.22,152.14,13.1408]
[1745839130843,6.5679,152.21,152.12,5.9167]
[1745839131441,6.5673,152.22,152.12,5.9167]
[1745839131843,13.1291,152.28,152.12,5.9167]
[1745839132050,6.5668,152.23,152.2,6.5677]
[1745839132247,4.430481,152.22,152.13,13.1419]
[1745839132447,6.5668,152.23,152.13,13.1419]
[1745839132652,4.43098222,152.22,152.13,13.1419]
[1745839132948,6.5668,152.23,152.13,13.1419]
[1745839132949,6.5668,152.23,152.14,1.20649357]
[1745839134350,6.5664,152.24,152.13,13.1419]
[1745839134552,4.0088,152.3,152.14,1.20641302]
[1745839134847,6.5647,152.28,152.15,1.20641302]
[1745839135149,4.43001699,152.27,152.16,1.20641302]
[1745839135346,4.43001699,152.26,152.13,1.20641302]
[1745839135542,6.5647,152.28,152.26,6.5653]
[1745839135741,4.42894698,152.27,152.26,6.5653]
[1745839136453,4.42894698,152.27,152.25,6.5656]
[1745839136653,4.42894698,152.26,152.25,6.5656]
[1745839136852,6.5647,152.28,152.25,6.5656]
[1745839137051,4.42842488,152.27,152.25,6.5656]
[1745839137250,4.0088,152.3,152.24,6.5661]
[1745839137553,4.42755782,152.29,152.19,6.094]
[1745839137743,6.5656,152.26,152.23,6.5664]
[1745839138253,6.5651,152.27,152.24,6.5662]
[1745839138552,1.9556,152.33,152.19,6.094]
[1745839138855,6.5647,152.28,152.25,6.5657]
[1745839139059,4.42259505,152.27,152.25,6.5657]
[1745839139351,6.5647,152.28,152.25,6.5657]
[1745839139654,4.42114445,152.27,152.19,6.094]
[1745839139852,4.42114445,152.26,152.19,6.094]
[1745839140052,1.9556,152.33,152.19,6.094]
[1745839140251,4.42040349,152.32,152.22,6.5668]
[1745839140455,4.42040349,152.31,152.19,6.094]
[1745839140753,6.5665,152.24,152.21,6.5673]
[1745839141351,6.5665,152.24,152.22,6.5671]
[1745839142047,15.0809,152.33,152.23,6.5665]
[1745839142256,4.42272959,152.32,152.23,6.5665]
[1745839142456,15.0809,152.33,152.23,6.5665]
[1745839142457,4.42272959,152.31,152.23,6.5665]
[1745839142755,4.42272959,152.3,152.19,6.094]
[1745839142952,4.42272959,152.29,152.19,6.094]
[1745839143259,4.42272959,152.28,152.19,6.094]
[1745839143459,4.42272959,152.27,152.19,6.094]
[1745839143658,10.98832959,152.26,152.19,6.094]
[1745839143854,4.42272959,152.25,152.24,6.566]
[1745839144055,13.1253,152.33,152.24,6.566]
[1745839144255,4.42430859,152.32,152.24,6.566]
[1745839144462,4.42430859,152.31,152.19,6.094]
[1745839144755,4.42430859,152.3,152.19,6.094]
[1745839144956,10.98860859,152.29,152.27,6.5649]
[1745839145151,4.42430859,152.28,152.27,6.5649]
[1745839145654,4.42430859,152.28,152.2,13.1359]
[1745839145859,472.8,152.34,152.2,13.1359]
[1745839146160,6.5638,152.3,152.27,6.5646]
[1745839146358,4.42434974,152.29,152.27,6.5646]
[1745839146561,472.8,152.34,152.27,6.5646]
[1745839146762,4.42369958,152.33,152.28,6.5645]
[1745839146959,4.42369958,152.32,152.2,13.1359]
[1745839147163,4.42369958,152.31,152.19,6.094]
[1745839147357,4.42369958,152.3,152.22,6.567]
[1745839147558,1.9004,152.35,152.19,6.094]
[1745839147758,4.42192294,152.34,152.23,13.1334]
[1745839147960,2.0571,152.37,152.24,1.2058872]
[1745839148160,4.42273888,152.36,152.24,1.2058872]
[1745839148462,4.42273888,152.35,152.25,6.0275]
[1745839148665,1.9096,152.39,152.33,6.562]
[1745839148861,4.41815447,152.38,152.33,6.562]
[1745839149063,4.41815447,152.37,152.33,6.562]
[1745839149263,4.41815447,152.36,152.25,6.0275]
[1745839149462,1.9096,152.39,152.25,6.0275]
[1745839149763,10.97418569,152.38,152.26,1.20553438]
[1745839149964,1.9466,152.41,152.26,1.20553438]
[1745839150165,4.41396419,152.4,152.25,6.0275]
[1745839150361,6.5613,152.36,152.32,6.5625]
[1745839150569,1.9466,152.41,152.32,6.5625]
[1745839150769,4.41012968,152.4,152.32,6.5625]
[1745839151062,6.5613,152.36,152.32,6.5625]
[1745839151366,6.5613,152.36,152.33,6.5623]
[1745839151762,6.5618,152.35,152.25,6.0275]
[1745839151973,1.9466,152.41,152.3,6.5634]
[1745839152164,4.40963778,152.4,152.25,6.0275]
[1745839152365,4.40963778,152.39,152.25,6.0275]
[1745839152566,4.40963778,152.38,152.25,6.0275]
[1745839152871,6.32653778,152.37,152.25,2.0713]
[1745839153165,4.40963778,152.36,152.25,2.0713]
[1745839153364,4.40963778,152.35,152.25,2.0713]
[1745839153667,6.38093778,152.34,152.25,2.0713]
[1745839153873,4.40963778,152.33,152.25,2.0713]
[1745839154073,6.5649,152.28,152.25,8.637]
[1745839154267,1.9713,152.34,152.25,2.0713]
[1745839154467,4.4036133,152.33,152.25,2.0713]
[1745839154769,4.4036133,152.32,152.25,2.0713]
[1745839154971,4.4036133,152.31,152.25,2.0713]
[1745839155171,1.9713,152.34,152.25,2.0713]
[1745839155374,6.5645,152.29,152.26,6.5653]
[1745839155562,1.9713,152.34,152.25,2.0713]
[1745839155866,4.40420237,152.33,152.25,2.0713]
[1745839156062,6.565,152.27,152.25,2.0713]
[1745839156264,1.9169,152.37,152.25,2.0713]
[1745839156466,4.40413556,152.36,152.25,2.0713]
[1745839156671,4.40413556,152.35,152.25,2.0713]
[1745839156871,4.40413556,152.34,152.25,2.0713]
[1745839157069,4.40370223,152.33,152.25,2.0713]
[1745839157273,6.563,152.32,152.28,6.5642]
[1745839157472,1.9169,152.37,152.25,2.0713]
[1745839157771,24.11352632,152.36,152.26,6.5651]
[1745839157971,4.40327591,152.35,152.25,2.0713]
[1745839158166,4.40327591,152.34,152.25,2.0713]
[1745839158367,4.40327591,152.33,152.25,2.0713]
[1745839158666,6.5639,152.3,152.27,6.5648]
[1745839159474,6.5642,152.29,152.26,6.5652]
[1745839159672,6.5642,152.29,152.25,2.0713]
[1745839160068,6.5642,152.29,152.26,6.565]
[1745839160468,6.5642,152.29,152.25,2.0713]
[1745839160773,6.5642,152.29,152.26,6.5653]
[1745839160973,1.9555,152.35,152.26,6.5653]
[1745839161174,4.405202,152.34,152.24,6.566]
[1745839161374,4.405202,152.33,152.2,1.9874]
[1745839161576,6.5647,152.28,152.2,1.9874]
[1745839161873,6.5647,152.28,152.25,6.5655]
[1745839162074,6.5641,152.29,152.2,1.9874]
[1745839164075,6.5641,152.29,152.26,6.5651]
[1745839164272,1.9555,152.35,152.26,6.5651]
[1745839164473,4.41066024,152.34,152.26,6.5651]
[1745839164673,4.41066024,152.33,152.27,6.5649]
[1745839164970,6.5642,152.29,152.27,6.5649]
[1745839165166,6.5642,152.29,152.26,6.5651]
[1745839165574,6.5642,152.29,152.2,1.9874]
[1745839165575,1.9555,152.35,152.2,1.9874]
[1745839165774,4.41086508,152.34,152.3,6.5636]
[1745839165976,1.9555,152.35,152.2,1.9874]
[1745839166274,6.5626,152.33,152.31,6.5632]
[1745839166476,1.9555,152.35,152.31,6.5632]
[1745839166772,1.14276332,152.43,152.28,472.58]
[1745839166977,4.40733411,152.42,152.29,7.12523388]
[1745839167173,2.0569,152.46,152.29,5.9221]
[1745839167477,2.0569,152.46,152.34,6.5616]
[1745839167678,2.0569,152.46,152.29,5.9221]
[1745839167875,6.5599,152.39,152.29,5.9221]
[1745839168679,6.5603,152.38,152.29,5.9221]
[1745839169574,6.5603,152.38,152.34,6.5616]
[1745839169779,6.5603,152.38,152.29,5.9221]
[1745839170080,6.5603,152.38,152.35,6.5613]
[1745839170581,2.0569,152.46,152.34,6.5616]
[1745839170878,19.71,152.44,152.29,5.9221]
[1745839171079,6.5602,152.38,152.29,5.9221]
[1745839171281,6.5602,152.38,152.34,6.5616]
[1745839171580,19.71,152.44,152.29,5.9221]
[1745839171781,19.71,152.42,152.29,5.9221]
[1745839171986,6.36197437,152.41,152.29,5.9221]
[1745839172284,6.5613,152.36,152.33,6.5622]
[1745839172472,1.9591,152.41,152.29,5.9221]
[1745839172677,2.0525,152.39,152.29,5.9221]
[1745839173081,6.5611,152.36,152.33,6.5621]
[1745839175088,6.5611,152.36,152.29,5.9221]
[1745839175280,6.5608,152.37,152.29,5.9221]
[1745839176684,2.0525,152.39,152.29,5.9221]
[1745839177086,6.5609,152.37,152.29,5.9221]
[1745839177587,6.5609,152.37,152.34,6.5617]
[1745839178088,6.5609,152.37,152.29,5.9221]
[1745839178887,6.5609,152.37,152.34,6.5616]
[1745839179089,2.0525,152.39,152.29,1.9833]
[1745839179289,4.40574866,152.38,152.29,1.9833]
[1745839179490,4.40574866,152.37,152.3,6.5636]
[1745839179787,2.0525,152.39,152.29,1.9833]
[1745839179986,4.40628156,152.38,152.31,6.5632]
[1745839180188,6.5622,152.34,152.31,6.5632]
[1745839181590,6.5622,152.34,152.32,6.5627]
[1745839182194,6.5622,152.34,152.31,6.563]
[1745839182485,6.5616,152.35,152.29,1.9833]
[1745839182791,6.5616,152.35,152.32,6.5625]
[1745839182995,2.0525,152.39,152.32,6.5625]
[1745839183184,1.14255696,152.43,152.3,472.42]
[1745839183490,4.1638,152.5,152.31,3.16046274]
[1745839183686,6.557,152.46,152.32,1.20506274]
[1745839183887,4.1638,152.5,152.33,13.1243]